bitfinex/quotes_ETHUSD_20241009
["timestamp","ask_amount","ask_price","bid_price","bid_amount"]
[1728464430345,0.3108,2432.3,2431.9,5.11737805]
[1728464430547,0.04837181,2432.1,2431.9,5.11737805]
[1728464430896,4.42137,2432.8,2432.3,4.11121]
[1728464431048,4.42137,2432.8,2432.4,0.8088]
[1728464431357,0.3108,2432.8,2432.4,4.91995]
[1728464431945,4.4213,2432.8,2432.4,0.8088]
[1728464432387,0.3108,2432.8,2432.4,4.91986]
[1728464432588,6.17598291,2433.0,2432.4,5.9134016]
[1728464432785,6.17598291,2433.0,2432.4,5.00207386]
[1728464433463,6.17598291,2433.0,2432.4,0.89101386]
[1728464433464,6.17595291,2433.0,2432.4,0.89101386]
[1728464433668,4.42073,2433.2,2432.7,4.91944]
[1728464433864,0.3108,2433.2,2432.8,4.11047]
[1728464434182,5.86450291,2433.4,2432.8,4.11047]
[1728464434183,6.17530291,2433.4,2432.8,4.11047]
[1728464434359,4.10977,2433.3,2432.7,4.91944]
[1728464434685,4.10992,2433.2,2432.7,4.91944]
[1728464435763,4.10992,2433.2,2432.7,4.91935]
[1728464436004,6.7928432,2433.4,2432.8,0.08220581]
[1728464436005,4.42039,2433.4,2432.8,0.08220581]
[1728464436177,0.04399438,2433.1,2433.0,4.11015]
[1728464436380,0.04399438,2433.1,2432.9,0.8088]
[1728464436555,5.86458291,2433.3,2432.9,1.35814208]
[1728464436757,5.86458291,2433.3,2432.9,0.8088]
[1728464436758,0.04402895,2433.0,2432.9,0.8088]
[1728464436968,6.17538291,2433.3,2432.9,0.8088]
[1728464437471,0.04410387,2433.2,2432.9,0.8088]
[1728464437670,6.17538291,2433.3,2432.9,0.8088]
[1728464437881,0.04408466,2433.1,2432.9,0.8088]
[1728464438083,6.17538291,2433.3,2432.8,4.92108]
[1728464438394,0.04404719,2433.0,2432.8,4.92108]
[1728464438553,6.17538291,2433.3,2432.8,5.824262]
[1728464439092,0.04412212,2433.2,2432.8,5.824262]
[1728464439394,4.10981,2433.2,2432.8,0.8106]
[1728464439699,0.04408466,2433.1,2432.6,4.32029457]
[1728464439899,1.79900757,2433.1,2432.6,5.13089457]
[1728464440186,0.04408466,2433.1,2432.6,6.05509103]
[1728464440754,0.04408466,2433.1,2432.6,6.05508103]
[1728464441096,0.04408466,2433.1,2432.7,4.19273452]
[1728464442156,0.04408466,2433.1,2432.7,0.08220452]
[1728464442356,0.04408466,2433.1,2432.8,4.11048]
[1728464442594,2.06572291,2433.3,2432.8,4.11048]
[1728464442756,0.04409326,2433.0,2432.8,4.11048]
[1728464442952,4.10986,2433.2,2432.7,0.87142537]
[1728464443193,0.04405579,2432.9,2432.7,4.11049]
[1728464443357,6.17550291,2433.3,2432.7,4.19269457]
[1728464443557,6.17550291,2433.3,2432.7,4.11049]
[1728464443558,0.04402745,2432.8,2432.7,4.11049]
[1728464443854,5.86430291,2433.5,2432.8,4.91319]
[1728464444058,9.97372291,2433.5,2433.0,4.11013]
[1728464444255,5.86430291,2433.5,2433.0,4.11013]
[1728464444580,5.86430291,2433.5,2432.9,0.58173719]
[1728464444581,4.10949,2433.4,2432.9,0.58173719]
[1728464445596,0.3108,2433.6,2432.6,4.87779]
[1728464445597,1.75492291,2433.1,2432.6,4.87779]
[1728464445893,4.1099,2433.2,2432.7,4.11057]
[1728464446256,4.1099,2433.2,2432.7,4.19277456]
[1728464446456,4.1099,2433.2,2432.6,4.87779]
[1728464446656,4.1099,2433.2,2432.6,9.95177129]
[1728464447718,4.1099,2433.2,2432.7,4.11065]
[1728464449315,8.2198,2433.2,2432.6,9.95178129]
[1728464449501,4.1099,2433.2,2432.6,9.95178129]
[1728464449704,4.1099,2433.2,2432.7,4.11063]
[1728464450094,4.1099,2433.2,2432.7,4.19283458]
[1728464450439,4.1099,2433.2,2432.7,5.20822203]
[1728464451215,0.04411402,2433.1,2432.7,5.12601745]
[1728464451785,0.04411402,2433.1,2432.7,5.20822204]
[1728464452286,0.04411402,2433.1,2432.8,4.11047]
[1728464452490,0.04411402,2433.1,2432.8,5.21538233]
[1728464453779,0.04411402,2433.1,2432.8,1.10491233]
[1728464453976,0.04411402,2433.1,2432.7,4.19285459]
[1728464454422,0.04411402,2433.1,2432.8,4.11048]
[1728464455129,0.04411402,2433.1,2433.0,4.11015]
[1728464456030,0.04411402,2433.1,2433.0,4.19234745]
[1728464457032,0.04411402,2433.1,2433.0,4.11015]
[1728464457207,0.04411402,2433.1,2433.0,5.09494613]
[1728464458128,0.04411402,2433.1,2433.0,5.012754]
[1728464459008,0.04411402,2433.1,2433.0,5.09494615]
[1728464460728,0.04411402,2433.1,2433.0,5.92494469]
[1728464461114,0.04411402,2433.1,2433.0,8.22986232]
[1728464461319,0.04411402,2433.1,2433.0,11.14767691]
[1728464464432,4.10787,2434.4,2434.0,4.87942]
[1728464464433,0.3108,2434.4,2434.0,4.87942]
[1728464464639,0.3108,2434.4,2434.0,4.9615798]
[1728464465869,0.3549,2434.7,2434.2,4.10808]
[1728464466080,4.46178,2435.0,2434.5,4.91739]
[1728464466237,0.3549,2435.0,2434.6,4.10743]
[1728464466663,4.46169,2435.0,2434.5,0.8098]
[1728464467040,5.69799454,2435.0,2434.5,0.8098]
[1728464467554,4.10737,2434.7,2434.2,4.10801]
[1728464467752,3.79479543,2434.8,2434.2,4.10801]
[1728464467753,4.10713,2434.8,2434.2,4.10801]
[1728464467973,8.21438,2434.8,2434.2,4.10801]
[1728464468624,4.10713,2434.8,2434.2,4.10801]
[1728464468819,8.21434,2434.8,2434.2,4.10801]
[1728464469024,4.10713,2434.8,2434.2,4.10801]
[1728464469256,4.10713,2434.8,2434.2,8.21603]
[1728464469447,4.10713,2434.8,2434.2,8.41847222]
[1728464469648,0.3549,2434.9,2434.3,4.10793]
[1728464469847,0.3549,2434.9,2434.5,4.10746]
[1728464470063,0.3549,2435.1,2434.6,4.18957061]
[1728464470456,0.3549,2435.1,2434.6,0.08214061]
[1728464470457,4.10678,2435.0,2434.6,0.08214061]
[1728464471342,11.44885882,2435.6,2434.7,0.8295]
[1728464471627,0.88280958,2435.7,2434.7,0.8295]
[1728464471628,0.3549,2435.7,2435.2,4.93593]
[1728464471827,4.10578,2435.6,2435.2,0.8295]
[1728464472034,4.4606,2435.7,2435.2,0.8295]
[1728464472233,5.317215,2435.7,2435.2,0.8295]
[1728464472974,4.10578,2435.6,2435.2,0.8295]
[1728464473544,1.211515,2435.7,2435.2,4.93593]
[1728464473752,5.317145,2435.7,2435.2,4.93593]
[1728464474280,4.10579,2435.6,2435.2,0.8295]
[1728464474483,4.10595,2435.5,2435.1,0.08212243]
[1728464474656,4.10595,2435.5,2435.0,0.7744]
[1728464474842,0.3549,2435.4,2434.9,7.10691]
[1728464475176,8.84287093,2435.6,2435.1,4.1066]
[1728464475177,4.46069,2435.6,2435.1,4.1066]
[1728464475542,4.46069,2435.6,2434.9,11.21371]
[1728464475775,4.10595,2435.5,2434.9,12.412521]
[1728464476477,4.46069,2435.6,2435.0,4.10664]
[1728464477186,4.10596,2435.5,2435.0,4.10664]
[1728464477874,8.5666,2435.6,2435.1,0.7744]
[1728464478346,4.46069,2435.6,2435.1,4.88085]
[1728464478545,4.46069,2435.6,2435.1,5.87093929]
[1728464479556,0.3549,2435.6,2435.2,4.10641]
[1728464480386,4.10552,2435.8,2435.3,4.18828613]
[1728464480387,4.46042,2435.8,2435.3,4.18828613]
[1728464480586,4.46042,2435.8,2435.3,8.29445613]
[1728464480788,4.46042,2435.8,2435.3,5.10385222]
[1728464480954,4.1053,2435.9,2435.5,0.808]
[1728464481489,4.46009,2436.0,2435.5,0.808]
[1728464481853,4.10534,2435.9,2435.5,0.808]
[1728464482052,4.10545,2435.8,2435.5,0.808]
[1728464482754,4.10545,2435.8,2435.3,0.7887]
[1728464482949,4.10545,2435.8,2435.3,1.688876]
[1728464482950,4.1057,2435.7,2435.3,1.688876]
[1728464483482,4.1057,2435.7,2435.3,0.7887]
[1728464483696,4.10618,2435.4,2435.0,0.7861]
[1728464485267,8.21218,2435.5,2435.0,0.7861]
[1728464485519,4.10612,2435.4,2435.0,0.7861]
[1728464486399,4.10605,2435.5,2435.0,0.7861]
[1728464486571,4.10605,2435.5,2435.1,0.489291]
[1728464486771,0.3549,2435.6,2435.1,0.489291]
[1728464486967,8.21144,2435.7,2435.1,4.6779844]
[1728464487198,0.3549,2435.8,2435.3,4.10625]
[1728464487407,0.3549,2435.8,2435.3,5.06678273]
[1728464487408,4.1056,2435.7,2435.3,5.06678273]
[1728464487909,4.1056,2435.7,2435.3,4.98466844]
[1728464488805,8.21075,2435.9,2435.3,4.98466844]
[1728464489018,4.10536,2435.9,2435.3,5.06678277]
[1728464489628,4.10555,2435.8,2435.3,5.06678277]
[1728464489787,1.12977525,2436.0,2435.3,0.87841844]
[1728464489788,8.21131,2435.7,2435.3,0.87841844]
[1728464490106,8.21127,2435.7,2435.2,4.871]
[1728464490510,4.1056,2435.7,2435.2,4.871]
[1728464490887,4.1056,2435.7,2435.2,0.7646]
[1728464490888,4.10577,2435.6,2435.2,0.7646]
[1728464491126,4.46097,2435.5,2435.0,0.7979]
[1728464491408,4.10607,2435.5,2435.0,4.90463]
[1728464491976,4.10603,2435.5,2435.0,0.7979]
[1728464492517,8.2121,2435.5,2435.0,0.7979]
[1728464492718,4.10603,2435.5,2435.0,0.7979]
[1728464492887,4.10603,2435.5,2435.0,1.71917496]
[1728464493086,8.21207,2435.5,2435.0,1.71917496]
[1728464493319,4.10603,2435.5,2435.0,1.71917496]
[1728464493645,8.21207,2435.5,2435.0,1.71917496]
[1728464493934,4.10603,2435.5,2435.0,1.71917496]
[1728464494097,4.10627,2435.3,2435.0,0.7979]
[1728464494731,4.10645,2435.2,2435.0,0.7979]
[1728464494928,4.10627,2435.3,2435.0,0.7979]
[1728464495229,8.21266,2435.3,2435.0,0.7979]
[1728464495998,4.10627,2435.3,2435.0,0.7979]
[1728464497258,8.21265,2435.3,2435.0,0.7979]
[1728464498437,4.10627,2435.3,2435.0,0.7979]
[1728464498842,4.1061,2435.4,2435.0,0.7979]
[1728464499454,4.10602,2435.5,2435.1,0.08212782]
[1728464499670,4.10602,2435.5,2435.0,5.83410499]
[1728464499832,4.10602,2435.5,2435.1,0.08212359]
[1728464500170,4.10602,2435.5,2435.0,5.83410499]
[1728464500672,4.10602,2435.5,2435.0,1.72741499]
[1728464500971,4.10602,2435.5,2435.1,0.0821246]
[1728464501171,8.21147,2435.7,2435.2,0.7769]
[1728464501667,4.10572,2435.7,2435.3,0.08212215]
[1728464501892,4.10572,2435.7,2435.4,0.7769]
[1728464502237,4.10543,2435.8,2435.4,0.7769]
[1728464502431,8.21075,2435.9,2435.4,0.85901244]
[1728464502632,0.77487525,2436.0,2435.4,0.85901244]
[1728464502633,4.10509,2436.0,2435.5,4.1059]
[1728464502865,8.85403254,2436.1,2435.7,0.822]
[1728464503072,4.10503,2436.1,2435.7,0.822]
[1728464504442,4.10501,2436.1,2435.7,0.822]
[1728464504789,3.0,2436.5,2436.0,0.753]
[1728464504988,15.41928428,2437.7,2436.0,0.753]
[1728464504989,4.53166604,2437.6,2436.5,0.753]
[1728464505237,4.53166604,2437.6,2436.1,5.65473246]
[1728464505238,4.53166604,2437.6,2436.8,4.10364]
[1728464505532,4.4651532,2437.8,2437.0,4.85635]
[1728464506533,0.3630032,2437.8,2437.0,4.85629]
[1728464507208,0.3630032,2437.8,2437.1,4.10321]
[1728464507526,4.4650732,2437.8,2437.1,0.904156]
[1728464507836,8.25986863,2437.8,2437.1,0.904156]
[1728464509128,8.25986863,2437.8,2437.0,0.753]
[1728464509129,7.89719543,2437.6,2437.0,0.753]
[1728464509339,11.99968543,2437.6,2437.0,0.753]
[1728464509849,7.89719543,2437.6,2437.0,0.753]
[1728464509996,11.99969543,2437.6,2437.0,0.753]
[1728464510337,11.99969543,2437.6,2437.0,1.23866]
[1728464510338,7.89719543,2437.6,2437.0,1.23866]
[1728464511259,4.1024,2437.6,2437.0,1.23866]
[1728464512240,4.4651532,2437.8,2437.1,4.10323]
[1728464512241,4.10229,2437.7,2437.1,4.10323]
[1728464512735,4.1102532,2437.8,2437.1,4.10314]
[1728464512920,4.1102532,2437.8,2437.1,5.01682954]
[1728464513126,8.2124232,2437.8,2437.1,5.01682954]
[1728464513501,4.10223,2437.7,2437.1,5.01682954]
[1728464514500,4.10242,2437.6,2437.1,0.91365954]
[1728464514810,4.10224,2437.7,2437.1,5.01688954]
[1728464515027,4.1102332,2437.8,2437.1,5.01688954]
[1728464515028,0.0081032,2437.8,2437.3,4.10278]
[1728464515206,0.0081032,2437.8,2437.3,4.10277]
[1728464515539,0.0081032,2437.8,2437.4,0.43180019]
[1728464515840,4.1102532,2437.8,2437.4,0.43180019]
[1728464516041,8.2124732,2437.8,2437.2,4.31829195]
[1728464516406,4.1102532,2437.8,2437.2,4.31829195]
[1728464516643,4.10223,2437.7,2437.2,4.31829195]
[1728464516846,4.1102532,2437.8,2437.2,0.21523195]
[1728464517016,4.10223,2437.7,2437.2,0.21523195]
[1728464518304,4.1102532,2437.8,2437.2,0.21523195]
[1728464518511,4.10243,2437.6,2437.0,0.753]
[1728464519053,4.10243,2437.6,2437.1,4.10322]
[1728464520941,4.10243,2437.6,2437.1,8.20636]
[1728464521124,4.10243,2437.6,2437.1,4.10314]
[1728464521323,4.1026,2437.5,2437.0,0.753]
[1728464521525,4.1026,2437.5,2437.0,4.8564]
[1728464521713,4.1026,2437.5,2437.0,5.752386]
[1728464521924,4.1026,2437.5,2437.0,1.648986]
[1728464522231,0.0081032,2437.8,2437.0,0.753]
[1728464522434,4.10291,2437.3,2437.0,0.753]
[1728464522827,4.10268,2437.5,2437.0,0.753]
[1728464523534,4.10299,2437.3,2436.8,3.8008]
[1728464523854,4.10299,2437.3,2436.8,7.90453]
[1728464524161,4.10299,2437.3,2436.8,9.12549942]
[1728464526288,4.10266,2437.5,2436.9,4.10356]
[1728464526469,4.10277,2437.4,2436.9,4.10356]
[1728464526621,4.10241,2437.6,2437.1,4.89082]
[1728464526822,4.10241,2437.6,2437.1,5.38810862]
[1728464528131,4.10259,2437.5,2437.1,1.28488862]
[1728464528326,4.10259,2437.5,2437.1,0.7876]
[1728464530738,4.10273,2437.4,2437.1,0.7876]
[1728464530940,4.10259,2437.5,2437.1,0.7876]
[1728464531774,4.1024,2437.6,2437.1,4.89082]
[1728464532470,4.10233,2437.7,2437.1,5.7983832]
[1728464532679,4.10233,2437.7,2437.2,4.1029]
[1728464533536,4.10233,2437.7,2437.3,4.10289]
[1728464533740,4.1101932,2437.8,2437.3,4.10289]
[1728464533963,4.1101932,2437.8,2437.3,5.10333282]
[1728464534485,4.10223,2437.7,2437.2,0.8087]
[1728464534780,4.10223,2437.7,2437.2,4.91175]
[1728464535088,4.10223,2437.7,2437.3,4.10289]
[1728464535691,0.0081032,2437.8,2437.3,4.10289]
[1728464535993,0.0081032,2437.8,2437.4,5.00653188]
[1728464536162,0.0081032,2437.8,2437.5,0.91094219]
[1728464536486,0.0081032,2437.8,2437.4,0.90395188]
[1728464537277,4.1102732,2437.8,2437.4,0.8219]
[1728464537617,4.1102732,2437.8,2437.4,0.90394754]
[1728464538189,0.0081032,2437.8,2437.4,0.90394754]
[1728464538389,0.0081032,2437.8,2437.5,0.50067375]
[1728464538789,0.0081032,2437.8,2437.4,4.60737684]
[1728464539174,0.0081032,2437.8,2437.5,4.10253]
[1728464540100,0.0081032,2437.8,2437.4,0.08204754]
[1728464540466,4.1101632,2437.8,2437.4,0.08204754]
[1728464540804,4.10224,2437.7,2437.1,5.0107432]
[1728464541095,4.10224,2437.7,2437.2,4.10305]
[1728464541412,4.10224,2437.7,2436.9,3.79479543]
[1728464541413,4.10275,2437.4,2436.9,4.10346]
[1728464541711,4.10275,2437.4,2437.0,3.0]
[1728464541862,4.10275,2437.4,2437.1,0.8133]
[1728464542280,4.10252,2437.6,2437.1,0.8133]
[1728464542281,8.20508,2437.6,2437.1,0.8133]
[1728464542566,4.10252,2437.6,2437.1,0.8133]
[1728464542759,4.10258,2437.5,2437.1,0.8133]
[1728464543183,4.10252,2437.6,2437.1,4.91653]
[1728464543396,4.10258,2437.5,2437.1,0.8133]
[1728464544487,4.10252,2437.6,2437.1,0.89535509]
[1728464545100,8.20501,2437.6,2437.1,0.89535509]
[1728464545298,4.10249,2437.6,2437.1,2.1055766]
[1728464545489,4.10256,2437.5,2437.1,2.1055766]
[1728464545654,4.10256,2437.5,2437.1,2.10557656]
[1728464545864,8.20497,2437.6,2437.1,2.10557656]
[1728464546163,4.10248,2437.6,2437.1,2.10557656]
[1728464547086,4.10248,2437.6,2437.1,6.20867656]
[1728464547285,4.10248,2437.6,2437.2,0.92086766]
[1728464547484,4.10248,2437.6,2437.1,4.99845505]
[1728464547691,4.10248,2437.6,2437.1,9.10159505]
[1728464548006,4.10248,2437.6,2437.1,4.9164]
[1728464548305,4.10248,2437.6,2437.1,4.99845496]
[1728464548858,4.1102932,2437.8,2437.3,4.92209]
[1728464549107,4.1102932,2437.8,2437.4,0.0820463]
[1728464549466,4.1102732,2437.8,2437.3,5.8328145]
[1728464549672,4.10225,2437.7,2437.3,0.8192]
[1728464551373,4.10257,2437.5,2437.3,0.8192]
[1728464553394,4.10273,2437.4,2437.1,0.8254]
[1728464553595,4.10257,2437.5,2437.1,0.8254]
[1728464555697,4.10234,2437.7,2437.1,5.01067715]
[1728464556541,8.20465,2437.7,2437.1,5.01067715]
[1728464556705,4.10231,2437.7,2437.2,8.20593]
[1728464557338,4.10231,2437.7,2437.2,4.10295]
[1728464557636,4.10231,2437.7,2437.3,0.8148]
[1728464560603,4.10253,2437.6,2437.3,0.8148]
[1728464561015,4.10253,2437.6,2437.3,0.81340418]
[1728464561644,4.10256,2437.5,2437.3,0.81340418]
[1728464562926,0.41104132,2437.7,2437.3,0.81340418]
[1728464563144,4.10272,2437.5,2437.0,3.0]
[1728464563346,4.10278,2437.4,2437.0,3.0]
[1728464564050,0.7556,2437.6,2437.0,3.0]
[1728464564051,4.10307,2437.2,2437.0,0.7963]
[1728464564542,4.10298,2437.3,2437.0,0.7963]
[1728464564841,8.20601,2437.3,2437.0,0.7963]
[1728464566144,4.1031,2437.2,2437.0,0.7963]
[1728464567303,4.10298,2437.3,2437.0,0.7963]
[1728464567550,8.20603,2437.3,2437.0,0.7963]
[1728464567776,4.10267,2437.5,2437.0,0.7963]
[1728464568056,4.10267,2437.5,2437.0,4.89954]
[1728464568239,4.10267,2437.5,2437.0,5.80804363]
[1728464568556,0.41104132,2437.7,2437.0,0.7963]
[1728464568719,4.10302,2437.3,2437.0,0.7963]
[1728464570038,4.10307,2437.2,2437.0,0.7963]
[1728464570357,4.10323,2437.1,2436.8,0.8234]
[1728464570566,4.10258,2437.5,2436.9,5.32934642]
[1728464570727,4.10258,2437.5,2437.1,0.8234]
[1728464572062,4.10293,2437.3,2437.1,0.8234]
[1728464574452,4.10258,2437.5,2437.1,0.8234]
[1728464575159,5.26897132,2437.7,2437.1,0.8234]
[1728464575366,8.61576132,2437.7,2437.1,4.92661]
[1728464575577,4.10251,2437.6,2437.1,4.92661]
[1728464578534,0.0081032,2437.8,2437.4,4.10265]
[1728464578774,0.0081032,2437.8,2437.5,0.7816]
[1728464580868,4.10223,2437.7,2437.5,0.7816]
[1728464582162,4.10223,2437.7,2437.0,7.10329]
[1728464582163,4.10239,2437.6,2437.3,0.815]
[1728464582744,4.99922232,2437.6,2437.3,0.815]
[1728464582943,4.10273,2437.4,2437.0,0.7925]
[1728464585050,8.20559,2437.4,2437.0,0.7925]
[1728464585556,4.10273,2437.4,2437.0,0.7925]
[1728464585761,4.85878,2437.2,2436.7,3.9604642]
[1728464585949,4.10335,2437.1,2436.7,3.9604642]
[1728464586789,4.10327,2437.1,2436.7,3.9604642]
[1728464587363,4.10342,2437.0,2436.7,0.9604642]
[1728464587664,4.10342,2437.0,2436.4,0.7759]
[1728464587665,4.99964,2437.0,2436.4,0.7759]
[1728464588905,4.99964,2437.0,2436.4,3.7759]
[1728464589088,4.10374,2436.8,2436.4,3.7759]
[1728464589246,4.99964,2437.0,2436.5,0.20693394]
[1728464589447,4.10357,2436.9,2436.5,0.20693394]
[1728464589868,9.10313,2437.0,2436.5,0.20693394]
[1728464590078,4.99964,2437.0,2436.5,0.20693394]
[1728464590276,9.10313,2437.0,2436.5,0.20693394]
[1728464591291,4.10375,2436.8,2436.5,0.20693394]
[1728464591871,4.10375,2436.8,2436.4,0.7759]
[1728464591872,8.20763,2436.8,2436.4,0.7759]
[1728464592396,4.10375,2436.8,2436.4,0.7759]
[1728464592769,4.10393,2436.7,2436.4,0.7759]
[1728464592982,4.10375,2436.8,2436.4,0.7759]
[1728464593207,8.20759,2436.8,2436.4,0.7759]
[1728464593996,4.10375,2436.8,2436.4,0.7759]
[1728464595259,0.89622,2437.0,2436.4,0.7759]
[1728464595260,1.165975,2436.7,2436.4,0.7759]
[1728464595499,4.10424,2436.5,2436.4,0.7759]
[1728464596002,4.10392,2436.7,2436.4,0.7759]
[1728464597088,4.10368,2436.9,2436.4,0.85798983]
[1728464597288,4.10336,2437.1,2436.5,0.8244]
[1728464597470,4.10336,2437.1,2436.5,4.92862]
[1728464597691,5.38757498,2437.1,2436.5,4.92862]
[1728464597889,4.10349,2437.0,2436.5,4.92862]
[1728464598471,4.10357,2436.9,2436.5,0.8244]
[1728464600016,4.10336,2437.1,2436.6,0.08207419]
[1728464600179,4.10336,2437.1,2436.7,0.7696]
[1728464602716,4.10358,2436.9,2436.7,0.7696]
[1728464603934,4.10374,2436.8,2436.5,0.7791]
[1728464604210,8.20731,2436.9,2436.5,0.7791]
[1728464605782,4.10358,2436.9,2436.5,0.7791]
[1728464606029,8.20725,2436.9,2436.5,0.7791]
[1728464607318,8.20724,2436.9,2436.5,0.7791]
[1728464607899,4.10358,2436.9,2436.5,0.7791]
[1728464608621,4.10335,2437.1,2436.6,0.08207941]
[1728464608789,4.1031,2437.2,2436.8,0.7904]
[1728464609130,4.10323,2437.1,2436.8,0.7904]
[1728464611302,4.1034,2437.0,2436.8,0.7904]
[1728464614112,4.923854,2437.1,2436.8,0.7904]
[1728464614913,4.10343,2437.0,2436.8,0.7904]
[1728464618041,4.10323,2437.1,2436.8,0.7904]
[1728464618397,8.20662,2437.1,2436.8,0.7904]
[1728464618613,4.10342,2437.0,2436.8,0.7904]
[1728464620335,4.10323,2437.1,2436.8,0.7904]
[1728464620534,8.20662,2437.1,2436.8,0.7904]
[1728464620742,4.10323,2437.1,2436.8,0.7904]
[1728464621238,8.20661,2437.1,2436.8,0.7904]
[1728464621735,4.10343,2437.0,2436.8,0.7904]
[1728464623025,4.10357,2436.9,2436.8,0.7904]
[1728464623215,4.10357,2436.9,2436.5,0.8215]
[1728464623429,4.10377,2436.8,2436.5,0.8215]
[1728464623624,1.165923,2437.1,2436.5,0.90357598]
[1728464623929,4.10333,2437.1,2436.6,0.5007836]
[1728464624872,4.10317,2437.2,2436.7,0.87577582]
[1728464625035,4.10317,2437.2,2436.8,0.7937]
[1728464625640,4.10317,2437.2,2436.8,1.75213094]
[1728464626243,4.10317,2437.2,2436.8,0.7937]
[1728464626758,4.10331,2437.1,2436.8,0.7937]
[1728464627539,4.10317,2437.2,2436.8,0.7937]
[1728464627787,4.10317,2437.2,2436.8,4.89743]
[1728464628673,4.10317,2437.2,2436.8,0.7937]
[1728464629094,8.20638,2437.2,2436.8,0.7937]
[1728464631059,4.10317,2437.2,2436.8,0.7937]
[1728464632669,8.20637,2437.2,2436.8,0.7937]
[1728464632867,4.10317,2437.2,2436.8,0.7937]
[1728464633069,8.20635,2437.2,2436.8,1.75213025]
[1728464633599,4.10317,2437.2,2436.8,1.75213025]
[1728464633795,8.20637,2437.2,2436.8,1.75213025]
[1728464634165,4.10317,2437.2,2436.8,1.75213025]
[1728464634576,8.20637,2437.2,2436.8,1.75213025]
[1728464634768,8.20637,2437.2,2436.8,0.7937]
[1728464635074,8.20634,2437.2,2436.8,0.7937]
[1728464640306,0.7556,2437.1,2436.8,0.7937]
[1728464640617,4.10352,2437.0,2436.8,0.7937]
[1728464640821,8.20704,2437.0,2436.8,0.7937]
[1728464641529,4.10352,2437.0,2436.8,0.7937]
[1728464643528,4.1032,2437.2,2436.8,0.7937]
[1728464643737,4.1032,2437.2,2436.8,10.7937]
[1728464644434,4.1029,2437.3,2436.8,16.797581]
[1728464644994,4.10309,2437.2,2436.8,12.693841]
[1728464647242,4.10332,2437.1,2436.8,10.7937]
[1728464647437,8.20574,2437.4,2436.8,10.7937]
[1728464647621,1.39873662,2437.5,2436.9,0.7607]
[1728464647937,4.1102432,2437.8,2437.3,0.7607]
[1728464648137,5.85074357,2437.6,2437.3,0.7607]
[1728464648340,4.10273,2437.4,2437.0,0.7607]
[1728464648712,4.10294,2437.3,2437.0,0.7607]
[1728464648913,5.85106357,2437.4,2437.0,0.7607]
[1728464649639,4.10273,2437.4,2437.0,0.7607]
[1728464650915,6.60643357,2437.6,2437.0,0.7607]
[1728464651115,4.1025,2437.6,2437.1,4.92051]
[1728464651650,4.10248,2437.6,2437.1,0.8173]
[1728464651945,4.10248,2437.6,2437.1,4.92052]
[1728464652148,4.10248,2437.6,2437.1,6.32889825]
[1728464652443,8.20498,2437.6,2437.1,2.22567825]
[1728464652807,4.10258,2437.5,2437.1,2.22567825]
[1728464653009,4.10248,2437.6,2437.1,2.22567825]
[1728464653208,4.10248,2437.6,2437.1,6.32889825]
[1728464653518,4.10248,2437.6,2437.2,1.05142286]
[1728464654693,4.10248,2437.6,2437.3,0.7625]
[1728464657687,4.10259,2437.5,2437.1,0.7819]
[1728464657910,4.10274,2437.4,2437.1,0.7819]
[1728464658565,1.74833357,2437.2,2437.1,0.7819]
[1728464658772,8.20659,2437.1,2436.8,10.0]
[1728464658984,1.74833357,2436.9,2436.8,10.0]
[1728464659394,4.10352,2437.0,2436.8,10.0]
[1728464659701,5.85159357,2437.1,2436.8,10.0]
[1728464659702,4.10357,2436.9,2436.8,10.0]
[1728464660211,7.60301993,2436.9,2436.8,10.0]
[1728464660365,6.60750357,2436.9,2436.8,10.0]
[1728464662369,8.64937739,2436.9,2436.8,10.0]
[1728464669534,11.64937739,2436.9,2436.8,10.0]
[1728464682425,9.60901792,2436.9,2436.8,10.0]
[1728464682944,10.98026071,2436.9,2436.8,10.0]
[1728464694022,10.22466071,2436.9,2436.8,10.0]
[1728464701758,4.10357,2436.9,2436.8,10.0]
[1728464701966,5.85341792,2436.9,2436.8,10.0]
[1728464705187,8.85341792,2436.9,2436.8,10.0]
[1728464709348,9.60901792,2436.9,2436.8,10.0]
[1728464712780,10.15901792,2436.9,2436.8,10.0]
[1728464712975,11.58526071,2436.9,2436.8,10.0]
[1728464713888,12.22862947,2436.9,2436.8,10.0]
[1728464714268,12.22862947,2436.9,2436.8,3.33087361]
[1728464714471,47.28754047,2436.9,2436.8,3.33087361]
[1728464714711,49.34081391,2436.9,2436.8,3.33087361]
[1728464716365,48.21055198,2436.9,2436.8,3.33087361]
[1728464716871,46.15719198,2436.9,2436.8,3.33087361]
[1728464717103,4.10509,2436.0,2435.9,0.772]
[1728464717306,5.85493792,2436.0,2435.9,0.772]
[1728464719593,4.10509,2436.0,2435.9,0.772]
[1728464721133,4.85951,2436.7,2435.9,0.772]
[1728464721134,4.10486,2436.2,2435.9,0.772]
[1728464721682,4.10461,2436.3,2435.9,0.772]
[1728464721989,4.10461,2436.3,2436.1,0.815]
[1728464722791,4.10453,2436.4,2436.1,0.815]
[1728464725018,8.20905,2436.4,2436.1,0.815]
[1728464725213,4.10419,2436.6,2436.1,0.815]
[1728464725417,4.10397,2436.7,2436.2,4.18681957]
[1728464725577,7.98634758,2436.9,2436.4,4.905]
[1728464725783,7.98634758,2436.9,2436.5,0.8006]
[1728464726080,4.10384,2436.8,2436.5,0.8006]
[1728464727121,4.10401,2436.7,2436.5,0.8006]
[1728464727295,4.10407,2436.6,2436.5,0.8006]
[1728464732024,4.21389431,2436.6,2436.5,0.8006]
[1728464737452,0.10982431,2436.6,2436.5,0.8006]
[1728464737655,4.21389431,2436.6,2436.5,0.8006]
[1728464738183,0.10982431,2436.6,2436.5,0.8006]
[1728464740473,4.21389431,2436.6,2436.5,0.8006]
[1728464741067,0.10982431,2436.6,2436.5,0.8006]